bitfinex/quotes_ETHUSD_20220105
["timestamp","ask_amount","ask_price","bid_price","bid_amount"]
[1641407887109,4.319,3752.5,3752.4,5.19896998]
[1641407887312,19.919,3752.5,3752.4,4.51436998]
[1641407887511,19.919,3752.5,3751.4,1.75715751]
[1641407887512,7.6,3752.4,3751.4,1.75715751]
[1641407887748,0.66667,3752.0,3751.4,1.75715751]
[1641407887953,0.66667,3752.0,3751.5,0.00568424]
[1641407887954,0.319,3751.9,3751.5,0.00568424]
[1641407888153,0.619,3751.9,3751.5,0.00568424]
[1641407888355,0.78215287,3751.8,3751.2,0.00738951]
[1641407888557,0.60891846,3751.6,3751.2,0.00738951]
[1641407888756,0.319,3751.5,3751.2,0.00738951]
[1641407889255,0.619,3751.5,3750.8,0.0096632]
[1641407889860,2.48016919,3751.4,3750.8,0.0096632]
[1641407890058,0.319,3751.3,3750.8,0.0096632]
[1641407890258,0.619,3751.3,3750.8,0.0096632]
[1641407890558,1.619,3751.3,3750.5,0.01136847]
[1641407891060,1.65686564,3751.3,3750.5,0.01136847]
[1641407891258,1.619,3751.3,3750.5,0.01136847]
[1641407891502,2.81647398,3751.2,3750.2,0.01307374]
[1641407891702,0.319,3751.1,3750.2,0.01307374]
[1641407891907,0.66683,3751.0,3750.2,0.01307374]
[1641407892106,0.86590358,3750.6,3750.2,0.01307374]
[1641407892307,0.86590358,3750.6,3750.0,0.01421059]
[1641407892308,0.58126117,3750.1,3750.0,0.01421059]
[1641407892705,0.88126117,3750.1,3750.0,0.01421059]
[1641407892906,1.20026117,3750.1,3750.0,0.01421059]
[1641407893106,0.619,3750.1,3750.0,0.01421059]
[1641407893514,7.919,3750.1,3750.0,1.059e-05]
[1641407893709,6.45,3750.0,3749.5,1.75715751]
[1641407893908,0.319,3749.9,3749.5,1.75715751]
[1641407894111,0.319,3749.9,3749.5,1.6909312]
[1641407894112,7.3,3749.8,3749.5,1.6909312]
[1641407894313,0.319,3749.7,3749.5,4.4129]
[1641407894511,14.83304264,3749.6,3749.1,2.99161893]
[1641407894717,1.319,3749.5,3749.1,2.31611893]
[1641407894913,8.3,3749.3,3749.1,1.65059263]
[1641407895111,7.3,3749.1,3748.6,4.51086418]
[1641407895364,15.6,3748.9,3748.6,4.51086418]
[1641407895567,8.3,3748.7,3748.0,6.01448557]
[1641407895775,3.69304474,3748.6,3748.5,2.949]
[1641407895967,1.1510021,3748.6,3748.1,0.00341054]
[1641407896167,1.0,3748.5,3748.1,0.00341054]
[1641407896365,23.9,3748.2,3748.1,6.17341054]
[1641407896568,26.15194449,3748.2,3748.1,1.054e-05]
[1641407896766,26.15194449,3748.2,3747.4,6.94]
[1641407896767,26.45194449,3748.2,3747.4,6.94]
[1641407896967,0.66747,3747.9,3747.4,6.94]
[1641407897169,15.919,3747.8,3747.5,0.00341054]
[1641407897369,1.0,3747.7,3747.4,6.94]
[1641407897673,15.6,3747.5,3747.4,5.83492917]
[1641407897869,0.66755,3747.2,3746.7,1.04158189]
[1641407898069,0.319,3747.1,3746.7,1.04158189]
[1641407898269,0.3,3747.1,3746.8,0.00397896]
[1641407898471,0.319,3747.4,3746.8,0.00397896]
[1641407898669,4.8338937,3747.7,3746.8,0.00397896]
[1641407898670,5.1528937,3747.7,3746.8,0.00397896]
[1641407899307,3.02636943,3747.3,3746.8,6.17397896]
[1641407899609,3.02636943,3747.3,3746.9,0.00341054]
[1641407900108,3.02636943,3747.6,3746.9,0.62597293]
[1641407900310,0.6,3747.3,3746.9,0.62597293]
[1641407900508,0.3,3747.5,3747.0,0.00284211]
[1641407900708,3.32636943,3747.6,3747.0,0.00284211]
[1641407901410,3.02636943,3747.5,3747.0,0.00284211]
[1641407902209,0.3,3747.6,3747.0,0.00284211]
[1641407902611,0.00113685,3747.7,3747.0,0.66998211]
[1641407902869,0.30113685,3747.7,3747.0,0.66998211]
[1641407903068,0.00113685,3747.7,3747.1,0.00227369]
[1641407903968,0.00113685,3747.7,3747.0,0.00284211]
[1641407905672,1.00113685,3747.7,3747.0,0.00284211]
[1641407905874,0.00113685,3747.7,3747.0,0.00284211]
[1641407906377,3.02616582,3747.6,3747.0,0.00284211]
[1641407906641,1.619,3747.5,3747.0,0.00284211]
[1641407907044,1.619,3747.5,3746.9,0.00341054]
[1641407907541,0.619,3747.5,3746.9,0.00341054]
[1641407907942,1.28641,3747.5,3746.9,0.00341054]
[1641407908147,4.38076445,3747.4,3746.9,0.00341054]
[1641407908344,0.319,3747.3,3746.9,0.00341054]
[1641407908544,1.319,3747.3,3746.9,0.00341054]
[1641407908745,5.58338396,3747.3,3746.9,0.00341054]
[1641407908946,5.52117533,3747.3,3746.9,0.00341054]
[1641407909148,4.52117533,3747.3,3746.9,0.00341054]
[1641407909351,3.02616582,3747.2,3747.0,0.54922267]
[1641407909549,0.319,3747.1,3747.0,0.54922267]
[1641407910659,3.32616582,3747.2,3747.0,0.54922267]
[1641407910853,0.319,3747.1,3747.0,0.54922267]
[1641407911055,3.34516582,3747.1,3747.0,0.54922267]
[1641407911254,3.34516582,3747.1,3746.9,0.00080071]
[1641407911255,4.34516582,3747.1,3746.9,0.00080071]
[1641407911455,4.64516582,3747.1,3746.9,0.00080071]
[1641407911660,1.0,3747.0,3746.9,0.00080071]
[1641407911955,1.0,3747.0,3746.9,0.00341054]
[1641407911956,1.619,3747.0,3746.9,0.00341054]
[1641407912155,5.1277509,3747.0,3746.9,0.00341054]
[1641407912355,5.1277509,3747.0,3746.5,0.00568423]
[1641407912356,4.64516582,3747.0,3746.5,0.00568423]
[1641407912554,4.64516582,3747.0,3746.4,0.00625265]
[1641407913057,0.96753,3746.7,3746.2,0.0073895]
[1641407913259,0.319,3746.6,3746.1,2.4140895]
[1641407913453,0.619,3746.6,3746.1,2.4140895]
[1641407913655,0.619,3746.6,3745.9,0.60853317]
[1641407913656,0.50332116,3746.5,3745.9,0.60853317]
[1641407913857,0.319,3746.4,3745.9,0.60853317]
[1641407914117,0.62013685,3746.4,3746.0,0.00113685]
[1641407914319,0.66763,3746.2,3746.0,0.00113685]
[1641407914518,0.619,3746.1,3746.0,0.00113685]
[1641407914717,0.619,3746.1,3745.6,0.00341054]
[1641407915217,0.619,3746.1,3745.6,0.52086555]
[1641407915218,0.319,3746.1,3745.6,0.52086555]
[1641407915418,2.89386582,3746.1,3745.7,0.66747]
[1641407915618,2.89386582,3746.1,3745.7,0.00284212]
[1641407915821,2.89386582,3746.1,3745.8,0.0022737]
[1641407916020,2.89386582,3746.1,3745.7,0.00284212]
[1641407916419,0.00113685,3746.4,3745.8,3.54318009]
[1641407916619,0.00113685,3746.4,3745.8,4.21066009]
[1641407916819,0.00113685,3746.4,3745.9,0.00170527]
[1641407917419,0.319,3746.3,3745.9,0.00170527]
[1641407917620,0.619,3746.3,3745.9,0.00170527]
[1641407917871,0.319,3746.3,3745.9,0.00170527]
[1641407918070,0.619,3746.3,3745.7,0.00284212]
[1641407919079,0.619,3746.3,3745.7,0.67033212]
[1641407919273,0.319,3746.3,3745.7,0.00284212]
[1641407919474,0.319,3746.3,3745.8,0.0022737]
[1641407919676,0.319,3746.3,3745.7,0.00284212]
[1641407920277,0.319,3746.3,3745.9,0.66746]
[1641407920577,0.00113685,3746.4,3745.9,0.66746]
[1641407921601,0.00113685,3746.4,3746.1,0.66737]
[1641407922505,3.685e-05,3746.4,3746.1,0.66737]
[1641407922703,3.685e-05,3746.4,3746.2,0.0011]
[1641407922903,3.685e-05,3746.4,3746.3,7.31238016]
[1641407923102,0.0008,3747.5,3746.3,8.61238016]
[1641407923309,1.35459863,3747.7,3746.8,0.6671387]
[1641407923509,0.00568423,3747.4,3747.3,8.21585914]
[1641407923707,0.00578286,3747.7,3747.4,6.1]
[1641407924106,4.48352273,3748.6,3747.3,0.91585914]
[1641407924107,0.00113685,3747.6,3747.3,0.91585914]
[1641407924504,0.00568423,3748.4,3747.3,0.91585914]
[1641407924705,0.00568423,3748.4,3747.6,0.66714]
[1641407924905,0.00511581,3748.3,3747.6,0.66714]
[1641407925106,0.00511581,3748.3,3747.4,1.19188748]
[1641407925369,0.00454739,3748.2,3747.4,1.19188748]
[1641407925768,0.8320021,3748.6,3747.4,1.85905748]
[1641407925769,0.00397896,3748.1,3747.4,1.85905748]
[1641407926173,0.8320021,3748.6,3747.4,1.85905748]
[1641407926174,0.00341054,3748.0,3747.4,1.85905748]
[1641407926571,0.00284212,3747.9,3747.4,1.85905748]
[1641407926971,0.8320021,3748.6,3747.4,1.85905748]
[1641407926972,0.00227369,3747.8,3747.4,1.85905748]
[1641407927371,0.00170527,3747.7,3747.4,1.85905748]
[1641407927571,0.8320021,3748.6,3747.5,0.27639994]
[1641407927772,0.8320021,3748.6,3747.9,0.66695]
[1641407927973,0.00454949,3748.6,3748.3,0.60153254]
[1641407928373,1.80638742,3749.2,3749.1,6.63584847]
[1641407928574,1.80638742,3749.2,3749.1,0.57902689]
[1641407928880,0.35757311,3749.7,3749.1,0.57902689]
[1641407929099,0.319,3749.7,3749.1,0.57902689]
[1641407929298,0.00511581,3749.4,3749.1,0.57902689]
[1641407929698,0.00454739,3749.3,3749.1,0.57902689]
[1641407930101,0.00397896,3749.2,3749.1,0.57902689]
[1641407931308,0.00397896,3749.2,3748.3,3.1662]
[1641407931510,0.00397896,3749.2,3748.0,0.65094677]
[1641407931511,0.619,3749.1,3748.0,0.65094677]
[1641407931708,2.66047508,3749.0,3748.1,0.86443584]
[1641407931905,0.319,3748.9,3748.1,0.86670954]
[1641407932107,1.62127369,3748.9,3748.2,0.00170527]
[1641407932308,0.00170527,3748.8,3748.2,0.00170527]
[1641407932510,0.619,3748.7,3748.2,0.00170527]
[1641407932766,0.62013684,3748.7,3748.2,0.00170527]
[1641407933167,0.62013684,3748.7,3748.3,0.5057878]
[1641407935669,1.28726684,3748.7,3748.3,0.5057878]
[1641407935869,0.62013684,3748.7,3748.3,0.5057878]
[1641407936070,3.02557394,3748.6,3748.3,0.5057878]
[1641407936506,3.32557394,3748.6,3748.3,0.5057878]
[1641407937110,3.02557394,3748.5,3748.3,0.5057878]
[1641407938111,3.01567394,3748.5,3748.3,0.5057878]
[1641407938311,0.3,3748.6,3748.3,0.5057878]
[1641407938510,0.62013684,3748.7,3748.3,0.5057878]
[1641407940646,1.98163697,3748.7,3748.3,0.5057878]
[1641407941452,0.62013684,3748.7,3748.3,0.5057878]
[1641407942254,0.66715,3748.5,3748.3,0.5057878]
[1641407942453,0.319,3748.4,3748.3,0.5057878]
[1641407942854,0.319,3748.4,3748.3,0.50692465]
[1641407944306,0.00113684,3748.7,3748.4,0.0485]
[1641407944708,0.00113684,3748.7,3748.5,0.66691]
[1641407945107,1.80638742,3749.1,3748.6,7.15]
[1641407945508,0.00170528,3749.0,3748.6,7.15]
[1641407945709,0.00170528,3749.0,3748.8,0.66689]
[1641407946010,1.80638742,3749.1,3748.7,0.66688]
[1641407946011,0.00113685,3748.9,3748.7,0.66688]
[1641407946710,0.00113685,3748.9,3748.7,1.96688]
[1641407946910,0.00113685,3748.9,3748.7,0.66688]
[1641407947113,0.00113685,3748.9,3748.7,1.96688]
[1641407947311,3.685e-05,3748.9,3748.7,1.96688]
[1641407948059,2.62978228,3750.9,3748.9,7.3]
[1641407948255,2.0,3751.0,3750.1,0.66661]
[1641407948454,2.0,3751.0,3750.1,9.62003234]
[1641407948455,0.00738951,3750.2,3750.1,9.62003234]
[1641407948655,5.67857968,3751.1,3750.2,7.3]
[1641407948857,5.67857968,3751.1,3750.3,7.3]
[1641407949063,0.00397896,3750.9,3750.4,1.0]
[1641407949461,0.00341054,3750.8,3750.6,1.3329]
[1641407949664,0.00341054,3750.8,3750.7,7.83586752]
[1641407949861,2.56268992,3751.8,3751.3,0.6665]
[1641407950063,3.87219226,3751.9,3751.4,0.80380891]
[1641407950263,0.00852635,3751.7,3751.4,0.78597022]
[1641407950662,0.00795793,3751.6,3751.4,0.78597022]
[1641407950864,0.319,3752.0,3751.5,4.25]
[1641407950865,0.57695793,3752.0,3751.5,4.25]
[1641407951069,0.57695793,3752.0,3751.9,0.63247671]
[1641407951279,0.57695793,3752.0,3751.0,0.66656]
[1641407951523,0.66665,3751.7,3750.4,3.9615]
[1641407951720,0.66665,3751.7,3751.1,0.00284212]
[1641407951721,0.319,3751.6,3751.1,0.00284212]
[1641407951920,0.38454899,3751.6,3750.6,0.00568424]
[1641407952121,0.68454899,3751.6,3750.6,0.00568424]
[1641407952325,16.28454899,3751.6,3750.6,0.00568424]
[1641407952523,17.28454899,3751.6,3750.6,0.00568424]
[1641407952721,17.28454899,3751.6,3751.3,0.67031114]
[1641407953121,1.68454899,3751.6,3751.4,0.00113685]
[1641407953525,3.2,3751.4,3749.7,6.53418992]
[1641407953723,0.66686,3751.2,3750.0,0.00795793]
[1641407953923,0.319,3751.1,3750.0,0.00795793]
[1641407954123,16.219,3751.1,3750.0,0.00795793]
[1641407954422,16.219,3751.1,3749.5,2.56268992]
[1641407954423,0.68454899,3751.1,3750.8,0.47945317]
[1641407954826,0.68454899,3751.1,3750.9,0.00284212]
[1641407955269,0.619,3751.1,3750.9,0.00284212]
[1641407955670,16.219,3751.1,3750.9,0.00284212]
[1641407956073,1.0,3751.0,3750.9,0.00284212]
[1641407956273,1.619,3751.0,3750.2,0.00682108]
[1641407956676,0.66685,3750.6,3749.7,0.0096632]
[1641407956874,0.319,3750.6,3750.3,0.66669]
[1641407957073,0.319,3750.6,3750.2,0.01257626]
[1641407957074,0.619,3751.1,3750.2,0.01257626]
[1641407957273,0.619,3751.1,3750.4,0.00568424]
[1641407957476,0.619,3751.1,3750.3,0.00625266]
[1641407957676,0.619,3751.1,3750.4,0.63839713]
[1641407957978,0.619,3751.1,3751.0,0.68055195]
[1641407958375,0.619,3751.1,3751.0,0.68282565]
[1641407958877,0.619,3751.1,3751.0,0.0022737]
[1641407959304,0.619,3751.1,3750.5,0.00511581]
[1641407959504,3.31989385,3751.1,3750.5,0.00511581]
[1641407960108,0.6667,3751.0,3750.5,0.00511581]
[1641407960509,3.36759385,3751.0,3750.5,0.00511581]
[1641407961312,3.36759385,3751.0,3750.8,0.67385814]
[1641407961711,0.6667,3751.0,3750.9,0.00284212]
[1641407962116,2.2857,3751.0,3750.4,0.00568424]
[1641407962313,0.94531094,3750.9,3749.9,0.00852635]
[1641407962513,0.66678,3750.6,3749.9,0.00852635]
[1641407962756,0.319,3750.5,3750.3,0.67328406]
[1641407963256,0.619,3750.5,3750.4,0.00568424]
[1641407963754,0.619,3750.5,3749.8,0.00909478]
[1641407963954,0.619,3750.5,3749.9,0.66677]
[1641407964854,0.619,3750.5,3749.8,0.00909478]
[1641407964855,0.619,3750.5,3750.2,0.66672]
[1641407965255,0.619,3750.5,3750.3,0.00625266]
[1641407965855,0.619,3750.5,3750.3,1.45503455]
[1641407966054,0.319,3750.5,3750.3,1.45503455]
[1641407966256,0.319,3750.5,3750.4,7.30568424]
[1641407966513,0.319,3750.5,3750.4,9.92607039]
[1641407966913,0.0008,3751.1,3750.5,0.1]
[1641407967215,0.0008,3751.1,3750.8,0.6664787]
[1641407967412,0.0008,3751.1,3750.9,1.33569611]
[1641407967613,0.0008,3751.1,3751.0,0.96537433]
[1641407967812,0.0008,3751.1,3751.0,0.96764803]
[1641407969213,0.32070527,3751.9,3751.6,0.81126736]
[1641407969414,0.32070527,3751.9,3751.7,0.67318371]
[1641407969613,0.00227369,3751.8,3751.7,0.67318371]
[1641407975409,0.00227369,3751.8,3751.7,1.33954821]
[1641407978658,6.17,3752.1,3751.7,1.35198824]
[1641407978659,2.3982,3752.1,3751.7,1.35198824]
[1641407978856,1.3479639,3753.4,3751.7,1.35198824]
[1641407978857,1.3479639,3753.4,3752.0,0.01264919]
[1641407979055,1.3479639,3753.4,3753.1,0.66614]
[1641407979455,7.5179639,3753.4,3753.1,0.66614]
[1641407979662,8.86305561,3753.4,3753.2,1.45974538]
[1641407980257,2.69305561,3753.4,3753.2,2.12589538]
[1641407980858,1.3479639,3754.0,3753.5,0.66598]
[1641407981061,0.319,3754.4,3753.5,0.66598]
[1641407981259,0.01193689,3753.9,3753.5,1.9979092]
[1641407981518,0.01193689,3753.9,3753.7,1.33196]
[1641407981715,0.01136847,3753.8,3753.7,1.33196]
[1641407983620,0.0008,3754.1,3753.7,7.28196]
[1641407983819,0.0008,3754.1,3753.8,0.66594]
[1641407984016,0.00113685,3754.0,3753.8,0.66594]
[1641407984418,0.00113685,3754.0,3753.9,0.55461294]
[1641407984820,0.00113685,3754.0,3753.9,1.45734511]
[1641407985483,0.00113685,3754.0,3753.9,2.12326511]
[1641407986187,0.319,3754.0,3753.6,0.13819997]
[1641407986387,0.319,3754.0,3753.2,5.12114]
[1641407986587,0.619,3754.0,3753.7,0.00170527]
[1641407986787,0.619,3754.0,3753.3,0.00397897]
[1641407987388,0.619,3754.0,3753.5,0.51026642]
[1641407987791,0.619,3754.0,3753.6,0.0022737]
[1641407987994,2.65501346,3753.9,3753.6,0.0022737]
[1641407988190,0.319,3753.8,3753.6,0.0022737]
[1641407988589,0.619,3753.8,3753.1,0.00511581]
[1641407988795,2.60585812,3753.7,3753.1,0.00511581]
[1641407989010,1.28528,3753.6,3753.0,0.00568424]
[1641407989209,3.40002409,3753.5,3752.6,0.68224105]
[1641407989408,0.319,3753.4,3752.6,0.68224105]
[1641407989610,2.50980405,3753.3,3752.7,0.00738951]
[1641407989809,0.95376841,3753.4,3752.7,0.00738951]
[1641407989810,0.319,3753.2,3752.7,0.00738951]
[1641407990011,0.319,3753.1,3752.7,0.00738951]
[1641407991010,1.2854,3753.1,3752.7,0.00738951]
[1641407991613,1.2854,3753.1,3752.4,0.00909478]
[1641407991815,0.9854,3753.1,3752.4,0.00909478]
[1641407993460,2.44788887,3753.0,3752.4,0.00909478]
[1641407993659,0.319,3752.9,3752.4,0.00909478]
[1641407993860,0.66642,3752.8,3752.4,0.00909478]
[1641407994063,0.319,3752.7,3752.3,0.6418701]
[1641407994462,0.319,3752.7,3752.4,0.00909478]
[1641407995661,0.619,3752.7,3752.3,0.6760332]
[1641407996061,0.619,3752.7,3752.4,0.00909478]
[1641407996912,0.319,3752.7,3752.4,0.00909478]
[1641408000860,2.52519603,3752.6,3752.4,0.00909478]
[1641408001060,7.869,3752.5,3752.4,0.00909478]
[1641408001261,10.60225545,3752.5,3751.9,0.01193689]
[1641408001465,10.90225545,3752.5,3751.9,0.01193689]
[1641408001664,0.49160497,3751.9,3751.2,0.68245586]
[1641408001867,0.49160497,3751.9,3751.2,0.66654]
[1641408001868,0.319,3751.8,3751.2,0.66654]
[1641408002064,0.319,3751.8,3751.3,0.01534744]
[1641408002865,0.319,3751.8,3751.4,0.66652]
[1641408003266,0.319,3751.8,3751.5,0.01421059]
[1641408005821,0.319,3751.8,3751.5,0.68065059]
[1641408006119,0.319,3751.8,3751.6,0.01364216]
[1641408006522,1.29473894,3751.8,3751.6,0.01364216]
[1641408006921,0.99473894,3751.8,3751.3,0.01534744]
[1641408007123,0.99473894,3751.8,3751.0,0.60658]
[1641408007124,1.29473894,3751.8,3751.0,0.60658]
[1641408007323,0.96658,3751.7,3751.1,0.01648428]
[1641408007521,0.619,3751.6,3751.1,0.01648428]
[1641408007758,0.619,3751.6,3750.9,0.01762113]
[1641408008760,0.67456444,3751.4,3750.9,0.01762113]
[1641408008961,0.66666,3751.1,3750.5,0.57629508]
[1641408009160,0.319,3751.0,3750.8,0.01818955]
[1641408009359,0.319,3751.0,3750.6,0.0193264]
[1641408009960,0.319,3751.0,3750.5,0.01989482]
[1641408010761,0.319,3751.0,3750.6,0.66664]
[1641408011161,0.319,3751.0,3750.6,0.48539798]
[1641408011362,0.00113685,3750.9,3750.6,0.48539798]
[1641408011613,0.32013685,3750.9,3750.6,0.48539798]
[1641408012015,0.32013685,3750.9,3750.6,2.21759739]
[1641408012615,0.00113685,3750.9,3750.6,2.21759739]
[1641408012816,0.00113685,3750.9,3750.7,1.73219941]
[1641408013015,3.685e-05,3750.9,3750.7,2.03219941]
[1641408013216,3.15504877,3752.1,3750.9,7.25]
[1641408013417,3.15504877,3752.1,3751.9,0.6663]
[1641408013614,3.15504877,3752.1,3751.9,1.3326]
[1641408014015,6.17,3752.2,3751.9,2.3326]
[1641408014215,6.17,3752.2,3751.9,1.3326]
[1641408014415,0.00682108,3752.1,3751.9,2.3326]
[1641408014618,0.00682108,3752.1,3751.9,0.6663]
[1641408014816,6.17,3752.2,3751.8,1.71806243]
[1641408014817,0.00625266,3752.0,3751.8,1.71806243]
[1641408015271,0.00568424,3751.9,3751.8,1.71806243]
[1641408015865,0.00568424,3751.9,3751.5,2.57709364]
[1641408015866,0.00568424,3751.9,3751.7,0.81342121]
[1641408016266,0.00511581,3751.8,3751.7,0.81342121]
[1641408017872,0.00511581,3751.8,3751.6,2.38451243]
[1641408018271,6.47,3752.2,3751.6,2.38451243]
[1641408018272,0.00454739,3751.7,3751.6,2.38451243]
[1641408018672,0.00454739,3751.7,3751.6,0.66645]
[1641408019110,0.00454739,3751.7,3751.4,1.71806243]
[1641408019413,0.00397897,3751.6,3751.4,1.71806243]
[1641408019609,0.319,3751.5,3751.4,1.71806243]
[1641408019808,0.319,3751.5,3751.0,1.71806243]
[1641408019809,0.32241054,3751.5,3751.0,1.71806243]
[1641408020008,1.92241054,3751.5,3751.0,1.71806243]
[1641408020212,0.66665,3751.2,3751.0,1.71806243]
[1641408020415,0.319,3751.1,3751.0,1.71806243]
[1641408020614,0.62013685,3751.1,3750.7,1.71806243]
[1641408020812,0.32013685,3751.1,3750.7,1.71806243]
[1641408021815,0.32013685,3751.1,3750.7,2.38469243]
[1641408022414,0.32013685,3751.1,3751.0,5.46202371]
[1641408023062,0.32013685,3751.1,3751.0,6.32977459]
[1641408023261,0.00113685,3751.1,3751.0,6.32977459]
[1641408025665,0.00113685,3751.1,3750.9,0.6664608]
[1641408025869,0.00113685,3751.1,3750.5,1.3311385]
[1641408025870,0.319,3751.0,3750.5,1.3311385]
[1641408026067,0.619,3751.0,3750.5,1.3311385]
[1641408026266,0.619,3751.0,3750.6,0.00170527]
[1641408026951,0.619,3751.0,3750.3,1.29408438]
[1641408027155,0.00170527,3750.9,3750.3,2.62733438]
[1641408027352,0.319,3750.8,3750.4,0.00113685]
[1641408027551,0.32013685,3750.8,3750.4,0.00113685]
[1641408028752,0.66669,3750.7,3750.4,0.00113685]
[1641408028952,0.319,3750.6,3750.4,0.00113685]
[1641408029352,0.319,3750.6,3750.0,0.00341054]
[1641408029752,0.619,3750.6,3750.0,0.00341054]
[1641408029954,0.59872035,3750.3,3750.0,0.00341054]
[1641408030154,0.319,3750.2,3750.0,0.00341054]
[1641408030360,0.319,3750.2,3749.6,0.00568423]
[1641408032065,0.319,3750.2,3749.4,0.13819997]
[1641408032066,0.319,3750.2,3749.5,0.00625266]
[1641408033166,0.319,3750.2,3749.5,0.67306266]
[1641408033567,0.319,3750.2,3749.6,0.00568423]
[1641408035219,2.6966479,3750.1,3749.6,0.00568423]
[1641408035419,0.619,3750.0,3749.6,0.00568423]
[1641408035619,1.58582,3750.0,3749.6,0.00568423]
[1641408036024,1.58582,3750.0,3749.7,0.66678]
[1641408036025,0.319,3750.0,3749.7,0.66678]
[1641408036421,0.319,3750.0,3749.8,0.00454739]
[1641408036621,2.6966479,3750.1,3749.8,0.00454739]
[1641408036822,1.36041765,3750.5,3749.8,0.00454739]
[1641408037023,2.11742205,3750.8,3750.7,0.93423007]
[1641408037024,1.36088113,3750.8,3750.7,0.93423007]
[1641408037223,1.36088113,3750.8,3750.1,7.91652]
[1641408037224,1.36088113,3750.8,3750.2,1.333]
[1641408037623,1.36088113,3750.8,3750.3,0.00284212]
[1641408037861,1.81450818,3751.0,3750.3,0.00284212]
[1641408038063,2.5371529,3751.2,3750.9,0.6665]
[1641408038462,2.53942659,3751.2,3750.9,0.6665]
[1641408039062,2.53942659,3751.2,3751.0,0.5476738]
[1641408039461,2.53942659,3751.2,3751.0,2.68161839]
[1641408040061,2.53942659,3751.2,3751.0,2.13394459]
[1641408040263,2.53942659,3751.2,3751.0,1.333]
[1641408040464,2.53942659,3751.2,3750.7,0.66661]
[1641408041918,3.20604659,3751.2,3750.7,0.66661]
[1641408043220,2.5371529,3751.1,3750.7,0.66661]
[1641408043619,2.53828974,3751.0,3750.7,0.66661]
[1641408044020,2.5371529,3751.0,3750.7,0.66661]
[1641408044823,2.5371529,3750.9,3750.7,0.66661]
[1641408045260,2.5371529,3750.8,3750.7,0.66661]
[1641408047367,2.5371529,3750.8,3750.6,0.50149001]
[1641408047569,0.319,3750.7,3750.6,0.50149001]
[1641408047768,2.8561529,3750.7,3750.6,0.50149001]
[1641408047966,2.8561529,3750.7,3750.6,0.50262686]
[1641408049215,0.319,3750.7,3750.6,0.50262686]
[1641408053961,0.319,3750.7,3750.6,1.16909686]
[1641408054165,0.319,3750.7,3750.6,3.56909686]
[1641408054564,0.319,3750.7,3750.6,2.90262686]
[1641408055363,0.319,3750.7,3750.6,0.50262686]
[1641408055763,0.02539161,3751.0,3750.6,0.50262686]
[1641408055964,0.02539161,3751.0,3750.7,2.21242613]
[1641408057430,0.02539161,3751.0,3750.8,0.6664894]
[1641408057629,0.29519161,3751.6,3750.9,0.3]
[1641408057830,0.29519161,3751.6,3751.1,0.66644]
[1641408058030,0.0022737,3751.4,3751.3,0.66644]
[1641408058432,0.0022737,3751.4,3751.3,1.29872181]
[1641408059437,0.0022737,3751.4,3751.1,0.66644]
[1641408059642,0.0022737,3751.4,3750.6,1.33416685]
[1641408059643,0.319,3751.3,3750.6,1.33416685]
[1641408059838,0.32070527,3751.3,3750.6,1.33416685]
[1641408060036,0.00113685,3751.2,3750.7,0.00170527]
[1641408060282,0.319,3751.1,3750.7,0.00170527]
[1641408060476,0.319,3751.1,3750.8,0.65751047]
[1641408060679,0.319,3751.1,3750.7,0.66832527]
[1641408061076,0.319,3751.1,3750.8,0.00113684]
[1641408061481,0.66664,3751.0,3750.8,0.00113684]
[1641408061681,7.12761164,3750.9,3750.8,0.00113684]
[1641408061880,7.12761164,3750.9,3750.4,0.00341054]
[1641408062082,1.3,3750.8,3750.1,0.00511581]
[1641408062280,2.91121854,3750.7,3750.1,0.00511581]
[1641408062479,0.85197719,3750.6,3750.1,0.00511581]
[1641408062683,0.66682,3750.4,3750.1,0.00511581]
[1641408062879,3.02208497,3750.3,3750.1,0.00511581]
[1641408063080,2.78827184,3750.2,3750.1,0.00511581]
[1641408063282,1.919,3750.2,3750.1,0.00511581]
[1641408063482,3.44338557,3750.2,3750.1,0.00511581]
[1641408063680,3.40286495,3750.2,3749.6,0.00795792]
[1641408063880,2.45719186,3750.1,3749.6,0.00795792]
[1641408064113,0.66684,3749.9,3749.6,0.00795792]
[1641408064314,0.319,3749.8,3749.6,0.67477792]
[1641408064820,0.319,3749.8,3749.7,0.0073895]
[1641408065316,3.25610511,3749.8,3749.7,0.0073895]
[1641408065519,4.25610511,3749.8,3749.7,0.0073895]
[1641408065719,4.25610511,3749.8,3749.0,0.78947471]
[1641408065720,7.25,3749.7,3749.0,0.78947471]
[1641408065921,2.824317,3749.6,3749.0,0.78947471]
[1641408066121,0.52234823,3749.1,3749.0,0.78947471]
[1641408066319,0.319,3749.1,3749.0,0.78947471]
[1641408066520,0.619,3749.1,3748.7,1.72057437]
[1641408066722,1.919,3749.1,3748.7,1.72057437]
[1641408066920,1.919,3749.1,3748.8,0.00170527]
[1641408067325,2.59386657,3749.1,3748.8,0.00170527]
[1641408067525,2.59386657,3749.1,3748.5,0.00341054]
[1641408067763,4.93899994,3749.0,3748.5,0.00341054]
[1641408067962,0.98607,3748.9,3748.5,0.00341054]
[1641408068161,2.28607,3748.9,3748.5,0.00341054]
[1641408068461,2.58607,3748.9,3748.5,0.00341054]
[1641408068865,2.50512497,3748.8,3748.5,0.00341054]
[1641408069062,1.319,3748.7,3748.2,0.00511581]
[1641408069466,1.919,3748.7,3747.9,0.00682108]
[1641408069869,4.96502518,3748.6,3747.9,0.00682108]
[1641408070067,0.319,3748.5,3747.9,0.00682108]
[1641408070269,3.03317439,3748.5,3747.9,0.00682108]
[1641408070568,4.33317439,3748.5,3747.8,0.00738951]
[1641408070867,1.919,3748.5,3747.8,0.00738951]
[1641408071068,0.66712,3748.4,3747.8,0.00738951]
[1641408071273,0.98612,3748.4,3748.0,0.67220653]
[1641408071727,0.98612,3748.4,3748.1,0.00568424]
[1641408071928,2.50512497,3748.3,3748.1,0.00568424]
[1641408072228,2.50512497,3748.3,3747.7,0.9750648]
[1641408072229,2.80512497,3748.3,3747.8,0.00738951]
[1641408072628,2.80512497,3748.3,3747.8,0.66708]
[1641408072829,0.00227369,3748.2,3747.8,0.66708]
[1641408073229,0.00170527,3748.1,3747.8,1.29631303]
[1641408073629,0.00113685,3748.0,3747.8,1.29631303]